fUSD/lending_fUSD_20251001
["ID","MTS","AMOUNT","RATE_DAILY","PERIOD"]
[388659322,1759308639383,-253.86938845,0.00018612,2]
[388659325,1759308639394,-2000.0,0.00019354,2]
[388659328,1759308639404,-151.0,0.0001936,2]
[388659330,1759308639413,-268.45935727,0.000194,3]
[388659336,1759308639454,-440.22749502,0.00017486,2]
[388659338,1759308639465,-30.15083981,0.00017486,2]
[388659340,1759308639476,-11936.41003198,0.000194,3]
[388659343,1759308639488,-651.24,0.000194,3]
[388659401,1759308640056,-470.37833483,0.00017374,2]
[388659403,1759308640065,-470.37833483,0.00017389,2]
[388659405,1759308640076,-470.37833483,0.00017407,2]
[388659407,1759308640086,-35.03760196,0.000194,3]
[388659409,1759308640098,-398.97150046,0.000194,3]
[388659411,1759308640109,-2001.62073795,0.000194,3]
[388659413,1759308640121,-2906.49679987,0.000194,3]
[388659416,1759308640132,-1169.95,0.000194,3]
[388659740,1759308643407,-150.58,0.00018061,2]
[388659742,1759308643417,-4923.03512061,0.000194,3]
[388659744,1759308643428,-634.14204546,0.000194,3]
[388659747,1759308643439,-115593.2435314,0.000194,3]
[388659750,1759308643460,-10291.26530745,0.000194,3]
[388659757,1759308643516,-3467.1,0.000194,3]
[388659774,1759308643678,-11408.57936877,0.000194,3]
[388659776,1759308643687,-151.0,0.000194,2]
[388659778,1759308643697,-151.0,0.000194,2]
[388659780,1759308643706,-151.0,0.000194,2]
[388659782,1759308643715,-151.0,0.000194,2]
[388659784,1759308643725,-151.0,0.000194,2]
[388659786,1759308643734,-151.0,0.000194,2]
[388659788,1759308643744,-151.624285,0.000194,2]
[388659790,1759308643754,-151.0,0.000194,2]
[388659792,1759308643764,-151.0,0.000194,2]
[388659794,1759308643775,-151.0,0.000194,2]
[388659797,1759308643785,-151.0,0.000194,2]
[388659799,1759308643806,-151.0,0.000194,2]
[388659801,1759308643817,-151.0,0.000194,2]
[388659803,1759308643827,-151.0,0.000194,2]
[388659805,1759308643837,-151.0,0.000194,2]
[388659807,1759308643847,-151.0,0.000194,2]
[388659809,1759308643858,-151.0,0.000194,2]
[388659811,1759308643868,-933.61947,0.000194,2]
[388659813,1759308643879,-151.0,0.000194,2]
[388659815,1759308643888,-933.61947,0.000194,2]
[388659817,1759308643899,-933.61947,0.000194,2]
[388659819,1759308643908,-151.0,0.000194,2]
[388659821,1759308643917,-933.61947,0.000194,2]
[388659823,1759308643927,-152.937835,0.000194,2]
[388659825,1759308643936,-151.0,0.000194,2]
[388659827,1759308643947,-151.0,0.000194,2]
[388659829,1759308643957,-151.0,0.000194,2]
[388659831,1759308643966,-151.125107,0.000194,2]
[388659833,1759308643976,-151.0,0.000194,2]
[388659835,1759308643986,-151.0,0.000194,2]
[388659837,1759308643996,-266.616105,0.000194,2]
[388659839,1759308644006,-151.0,0.000194,2]
[388659842,1759308644015,-151.0,0.000194,2]
[388659844,1759308644024,-151.0,0.000194,2]
[388659846,1759308644034,-151.0,0.000194,2]
[388659848,1759308644043,-151.0,0.000194,2]
[388659850,1759308644059,-151.0,0.000194,2]
[388659852,1759308644068,-151.0,0.000194,2]
[388659854,1759308644078,-151.0,0.000194,2]
[388659856,1759308644088,-151.0,0.000194,2]
[388659858,1759308644097,-151.0,0.000194,2]
[388659860,1759308644106,-151.0,0.000194,2]
[388659863,1759308644115,-151.0,0.000194,2]
[388659865,1759308644124,-151.0,0.000194,2]
[388659867,1759308644133,-151.0,0.000194,2]
[388659869,1759308644143,-151.0,0.000194,2]
[388659871,1759308644151,-151.0,0.000194,2]
[388659873,1759308644160,-151.0,0.000194,2]
[388659875,1759308644170,-151.0,0.000194,2]
[388659877,1759308644186,-151.0,0.000194,2]
[388659879,1759308644195,-151.0,0.000194,2]
[388659881,1759308644207,-151.0,0.000194,2]
[388659883,1759308644216,-151.0,0.000194,2]
[388659885,1759308644227,-151.0,0.000194,2]
[388659887,1759308644236,-208.185903,0.000194,2]
[388659889,1759308644245,-151.0,0.000194,2]
[388659891,1759308644254,-151.0,0.000194,2]
[388659893,1759308644263,-151.0,0.000194,2]
[388659895,1759308644273,-151.0,0.000194,2]
[388659897,1759308644283,-151.0,0.000194,2]
[388659899,1759308644292,-151.0,0.000194,2]
[388659901,1759308644307,-151.0,0.000194,2]
[388659903,1759308644316,-151.0,0.000194,2]
[388659905,1759308644326,-196.235275,0.000194,2]
[388659907,1759308644336,-151.0,0.000194,2]
[388659909,1759308644345,-151.0,0.000194,2]
[388659911,1759308644355,-151.0,0.000194,2]
[388659913,1759308644364,-151.0,0.000194,2]
[388659915,1759308644374,-151.0,0.000194,2]
[388659917,1759308644384,-151.0,0.000194,2]
[388659919,1759308644393,-151.0,0.000194,2]
[388659921,1759308644406,-151.0,0.000194,2]
[388659923,1759308644415,-151.0,0.000194,2]
[388659925,1759308644425,-151.0,0.000194,2]
[388659927,1759308644434,-151.0,0.000194,2]
[388659930,1759308644448,-151.0,0.000194,2]
[388659963,1759308644753,-151.0,0.000194,2]
[388659965,1759308644763,-151.0,0.000194,2]
[388659967,1759308644773,-151.0,0.000194,2]
[388659969,1759308644783,-151.0,0.000194,2]
[388659971,1759308644792,-151.0,0.000194,2]
[388659973,1759308644807,-151.0,0.000194,2]
[388659975,1759308644817,-188.832386,0.000194,2]
[388659977,1759308644826,-151.0,0.000194,2]
[388659979,1759308644836,-153.227608,0.000194,2]
[388659981,1759308644845,-151.0,0.000194,2]
[388659983,1759308644855,-151.0,0.000194,2]
[388659985,1759308644864,-151.0,0.000194,2]
[388659987,1759308644874,-151.0,0.000194,2]
[388659989,1759308644884,-151.0,0.000194,2]
[388659991,1759308644894,-151.0,0.000194,2]
[388659993,1759308644904,-151.0,0.000194,2]
[388659995,1759308644914,-279.925102,0.000194,2]
[388659997,1759308644923,-279.925102,0.000194,2]
[388659999,1759308644933,-279.925102,0.000194,2]
[388660001,1759308644942,-279.925102,0.000194,2]
[388660003,1759308644952,-151.0,0.000194,2]
[388660005,1759308644963,-151.0,0.000194,2]
[388660007,1759308644972,-151.0,0.000194,2]
[388660010,1759308644986,-151.0,0.000194,2]
[388660012,1759308644996,-151.0,0.000194,2]
[388660014,1759308645006,-151.0,0.000194,2]
[388660016,1759308645015,-151.0,0.000194,2]
[388660018,1759308645025,-151.0,0.000194,2]
[388660020,1759308645034,-151.0,0.000194,2]
[388660022,1759308645043,-151.0,0.000194,2]
[388660024,1759308645056,-151.0,0.000194,2]
[388660026,1759308645066,-151.0,0.000194,2]
[388660028,1759308645076,-235.613573,0.000194,2]
[388660030,1759308645086,-151.0,0.000194,2]
[388660032,1759308645096,-341.159329,0.000194,2]
[388660035,1759308645106,-151.0,0.000194,2]
[388660036,1759308645116,-341.159329,0.000194,2]
[388660039,1759308645125,-151.0,0.000194,2]
[388660041,1759308645134,-341.159329,0.000194,2]
[388660043,1759308645143,-341.159329,0.000194,2]
[388660045,1759308645154,-151.0,0.000194,2]
[388660047,1759308645163,-151.0,0.000194,2]
[388660049,1759308645172,-549.959264,0.000194,2]
[388660051,1759308645183,-549.959264,0.000194,2]
[388660053,1759308645192,-549.959264,0.000194,2]
[388660055,1759308645205,-549.959264,0.000194,2]
[388660057,1759308645215,-432.797293,0.000194,2]
[388660059,1759308645226,-432.797293,0.000194,2]
[388660061,1759308645235,-432.797293,0.000194,2]
[388660063,1759308645245,-432.797293,0.000194,2]
[388660065,1759308645254,-204.209332,0.000194,2]
[388660067,1759308645263,-151.0,0.000194,2]
[388660069,1759308645274,-151.0,0.000194,2]
[388660071,1759308645284,-151.0,0.000194,2]
[388660073,1759308645294,-151.0,0.000194,2]
[388660075,1759308645308,-151.0,0.000194,2]
[388660078,1759308645318,-151.0,0.000194,2]
[388660080,1759308645330,-151.0,0.000194,2]
[388660082,1759308645339,-151.0,0.000194,2]
[388660084,1759308645348,-151.0,0.000194,2]
[388660086,1759308645358,-1006.19049822,0.0001942,2]
[388660088,1759308645367,-156.889895,0.000195,2]
[388660090,1759308645377,-151.0,0.000195,2]
[388660092,1759308645386,-151.0,0.000195,2]
[388660094,1759308645395,-151.0,0.000195,2]
[388660096,1759308645405,-579.55847714,0.00019594,2]
[388660098,1759308645414,-549.959264,0.000196,2]
[388660100,1759308645424,-549.959264,0.000196,2]
[388660103,1759308645433,-549.959264,0.000196,2]
[388660105,1759308645447,-549.959264,0.000196,2]
[388660107,1759308645457,-432.797293,0.000196,2]
[388660109,1759308645467,-432.797293,0.000196,2]
[388660111,1759308645476,-432.797293,0.000196,2]
[388660114,1759308645486,-432.797293,0.000196,2]
[388660117,1759308645496,-151.0,0.000196,2]
[388660119,1759308645505,-151.0,0.000196,2]
[388660122,1759308645515,-151.0,0.000196,2]
[388660125,1759308645525,-151.0,0.000196,2]
[388660127,1759308645535,-2041.0,0.00019611,2]
[388660130,1759308645544,-1264.0,0.00019611,2]
[388660132,1759308645561,-3399.0,0.00019611,2]
[388660135,1759308645572,-4114.0,0.00019611,2]
[388660138,1759308645582,-9266.173,0.00019611,2]
[388660140,1759308645592,-621.0,0.00019611,2]
[388660142,1759308645603,-322.72,0.00019611,2]
[388660144,1759308645613,-151.0,0.00019644,2]
[388660146,1759308645623,-151.0,0.00019644,2]
[388660148,1759308645634,-151.0,0.00019644,2]
[388660150,1759308645644,-259.398902,0.00019644,2]
[388660152,1759308645654,-279.925102,0.00019644,2]
[388660155,1759308645664,-279.925102,0.00019644,2]
[388660158,1759308645674,-279.925102,0.00019644,2]
[388660161,1759308645683,-279.925102,0.00019644,2]
[388660164,1759308645693,-500.0,0.0001965,2]
[388660168,1759308645704,-500.0,0.0001965,2]
[388660171,1759308645714,-500.0,0.0001965,2]
[388660174,1759308645724,-500.0,0.0001965,2]
[388660177,1759308645734,-500.0,0.0001965,2]
[388660180,1759308645743,-500.0,0.0001965,2]
[388660183,1759308645753,-300.0,0.00019652,2]
[388660186,1759308645763,-151.0,0.00019674,2]
[388660189,1759308645773,-151.0,0.00019674,2]
[388660192,1759308645782,-151.0,0.00019674,2]
[388660194,1759308645792,-85.44412383,0.00019674,2]
[388660200,1759308645850,-65.55587617,0.00019674,2]
[388660202,1759308645860,-194.56975724,0.00019674,2]
[388660218,1759308645997,-200.853255,0.0001936,2]
[388660220,1759308646006,-79.2600064,0.00019674,2]
[388660222,1759308646016,-151.0,0.00019674,2]
[388660224,1759308646026,-151.0,0.00019674,2]
[388660226,1759308646035,-151.0,0.00019674,2]
[388660228,1759308646045,-151.0,0.00019674,2]
[388660230,1759308646058,-151.0,0.00019674,2]
[388660232,1759308646068,-151.0,0.00019674,2]
[388660234,1759308646077,-151.0,0.00019674,2]
[388660236,1759308646087,-151.0,0.00019674,2]
[388660238,1759308646096,-341.159329,0.00019674,2]
[388660240,1759308646106,-151.0,0.00019674,2]
[388660242,1759308646115,-341.159329,0.00019674,2]
[388660244,1759308646125,-152.931707,0.00019674,2]
[388660246,1759308646134,-341.159329,0.00019674,2]
[388660248,1759308646143,-341.159329,0.00019674,2]
[388660250,1759308646153,-151.0,0.00019674,2]
[388660253,1759308646162,-354.61,0.000197,2]
[388660255,1759308646172,-151.0,0.000197,2]
[388660257,1759308646184,-166.50122,0.000197,2]
[388660259,1759308646194,-151.0,0.000197,2]
[388660261,1759308646207,-151.0,0.000197,2]
[388660263,1759308646217,-151.0,0.000197,2]
[388660265,1759308646227,-151.0,0.000197,2]
[388660267,1759308646238,-151.0,0.000197,2]
[388660269,1759308646248,-151.0,0.000197,2]
[388660271,1759308646258,-151.0,0.000197,2]
[388660273,1759308646267,-151.0,0.000197,2]
[388660274,1759308646277,-151.0,0.000197,2]
[388660275,1759308646286,-151.0,0.000197,2]
[388660276,1759308646296,-151.0,0.000197,2]
[388660277,1759308646312,-151.0,0.000197,2]
[388660278,1759308646322,-151.0,0.000197,2]
[388660279,1759308646331,-151.0,0.000197,2]
[388660280,1759308646340,-151.0,0.000197,2]
[388660281,1759308646350,-151.0,0.000197,2]
[388660282,1759308646360,-151.0,0.000197,2]
[388660283,1759308646369,-151.0,0.000197,2]
[388660284,1759308646379,-151.0,0.000197,2]
[388660285,1759308646389,-151.0,0.000197,2]
[388660286,1759308646399,-151.0,0.000197,2]
[388660287,1759308646408,-151.0,0.000197,2]
[388660289,1759308646418,-151.0,0.000197,2]
[388660291,1759308646427,-151.0,0.000197,2]
[388660293,1759308646436,-151.0,0.000197,2]
[388660295,1759308646446,-151.0,0.000197,2]
[388660297,1759308646455,-155.022111,0.000197,2]
[388660299,1759308646464,-151.0,0.000197,2]
[388660301,1759308646474,-151.0,0.000197,2]
[388660303,1759308646484,-151.0,0.000197,2]
[388660305,1759308646494,-151.0,0.000197,2]
[388660307,1759308646503,-151.0,0.000197,2]
[388660309,1759308646514,-151.0,0.000197,2]
[388660311,1759308646523,-151.0,0.000197,2]
[388660313,1759308646532,-208.21288,0.000197,2]
[388660315,1759308646542,-151.0,0.000197,2]
[388660317,1759308646555,-274.781708,0.000197,2]
[388660320,1759308646565,-151.0,0.000197,2]
[388660322,1759308646575,-151.0,0.000197,2]
[388660323,1759308646584,-151.0,0.000197,2]
[388660325,1759308646596,-151.0,0.000197,2]
[388660328,1759308646609,-151.0,0.000197,2]
[388660329,1759308646619,-151.0,0.000197,2]
[388660332,1759308646630,-151.0,0.000197,2]
[388660334,1759308646639,-151.0,0.000197,2]
[388660336,1759308646649,-190.770605,0.000197,2]
[388660337,1759308646658,-151.0,0.000197,2]
[388660339,1759308646668,-151.0,0.000197,2]
[388660341,1759308646677,-151.0,0.000197,2]
[388660343,1759308646687,-151.0,0.000197,2]
[388660345,1759308646697,-151.0,0.000197,2]
[388660347,1759308646706,-151.0,0.000197,2]
[388660350,1759308646718,-151.0,0.000197,2]
[388660352,1759308646727,-151.0,0.000197,2]
[388660354,1759308646737,-151.0,0.000197,2]
[388660356,1759308646746,-151.0,0.000197,2]
[388660358,1759308646758,-151.0,0.000197,2]
[388660359,1759308646772,-341.159329,0.000197,2]
[388660361,1759308646782,-151.0,0.000197,2]
[388660363,1759308646791,-341.159329,0.000197,2]
[388660365,1759308646803,-341.159329,0.000197,2]
[388660368,1759308646813,-341.159329,0.000197,2]
[388660370,1759308646823,-151.0,0.000197,2]
[388660372,1759308646833,-15209.8384006,0.000197,2]
[388660374,1759308646846,-5822.05619725,0.000197,2]
[388660541,1759308648418,-200.853255,0.0001936,2]
[388660543,1759308648428,-191.33849914,0.000194,2]
[388660546,1759308648452,-9.51475586,0.000194,2]
[388660548,1759308648462,-200.853255,0.000194,2]
[388660550,1759308648471,-200.853255,0.000195,2]
[388660552,1759308648481,-4149.47148491,0.000197,2]
[388660564,1759308648578,-200.853255,0.000195,2]
[388660566,1759308648587,-1447.42145853,0.000197,2]
[388660568,1759308648598,-426.51759036,0.000197,2]
[388660570,1759308648609,-727.35128804,0.000197,2]
[388660572,1759308648620,-1047.375,0.000197,2]
[388660575,1759308648635,-718.44822223,0.000197,2]
[388660577,1759308648646,-21548.99999983,0.000197,2]
[388660580,1759308648668,-322.1765673,0.000197,2]
[388660592,1759308648773,-1204.1557642,0.000197,2]
[388660595,1759308648784,-13675.28621901,0.000197,2]
[388661070,1759308743104,-500.0,0.00016731,2]
[388661082,1759309001033,164.48,0.00027355,120]
[388661083,1759309007951,262.84,9.11e-05,2]
[388661084,1759309008154,262.84,9.589e-05,2]
[388661085,1759309008353,262.84,0.00010069,2]
[388661086,1759309008571,262.84,0.00010548,2]
[388661087,1759309008768,262.84,0.00011028,2]
[388661088,1759309009526,262.84,0.00011507,2]
[388661089,1759309009609,262.84,0.00011987,2]
[388661090,1759309009691,195.0,0.00012466,2]
[388661091,1759309009716,67.84,0.00012466,2]
[388661092,1759309009784,262.84,0.00012946,2]
[388661093,1759309009887,262.84,0.00013425,2]
[388661094,1759309010094,262.84,0.00013905,2]
[388661095,1759309010287,262.84,0.00014384,2]
[388661096,1759309010483,262.84,0.00014864,2]
[388661097,1759309010678,262.84,0.00015343,2]
[388661098,1759309010886,262.84,0.00015823,2]
[388661099,1759309011143,262.84,0.00016302,2]
[388661100,1759309020964,2160.0,0.00030137,120]
[388661108,1759309213508,731.12,0.00021945,30]
[388661113,1759309359746,-190.97093945,0.00016627,2]
[388661116,1759309499884,800.0,0.00030137,120]
[388661120,1759309576264,-385.32606678,0.00016723,2]
[388661121,1759309576286,-344.74545809,0.00016724,2]
[388661122,1759309576308,-195.0,0.00016724,2]
[388661123,1759309576332,-246.76165535,0.00016724,2]
[388661124,1759309576355,-300.0,0.00016724,2]
[388661125,1759309576378,-1378.02971358,0.00016725,2]
[388661126,1759309576400,-195.0,0.00016726,2]
[388661127,1759309576422,-250.0,0.00016727,2]
[388661128,1759309576445,-251.0,0.00016728,2]
[388661129,1759309576467,-500.0,0.00016731,2]
[388661130,1759309576489,-300.0,0.00016741,2]
[388661131,1759309576512,-1200.0,0.00016742,2]
[388661132,1759309576533,-300.0,0.00016742,2]
[388661133,1759309576555,-687.0,0.00016743,2]
[388661134,1759309576581,-262.84,0.00016782,2]
[388661135,1759309576604,-258.0,0.00016928,2]
[388661136,1759309576627,-2500.0,0.0001693,2]
[388661137,1759309576649,-250.0,0.00017,2]
[388661138,1759309576672,-262.84,0.00017261,2]
[388661139,1759309576698,-293.17913441,0.00017371,2]
[388661140,1759309576725,-293.17913441,0.00017371,2]
[388661141,1759309576750,-2541.11202358,0.00017374,2]
[388661142,1759309576777,-509.56545116,0.00017374,2]
[388661143,1759309576804,-1412.00298636,0.00017376,2]
[388661144,1759309576828,-509.56545116,0.00017376,2]
[388661145,1759309576852,-1412.00298636,0.00017379,2]
[388661146,1759309576875,-1475.51274207,0.0001738,2]
[388661147,1759309576902,-293.17913441,0.0001738,2]
[388661148,1759309576927,-166.85259387,0.00017386,2]
[388661149,1759309576956,-2541.11202358,0.00017386,2]
[388661150,1759309576980,-837.02087436,0.00017386,2]
[388661151,1759309577006,-837.02087436,0.00017387,2]
[388661152,1759309577030,-167.07881278,0.00017387,2]
[388661153,1759309577054,-999.38870617,0.00017387,2]
[388661154,1759309577081,-1475.51274207,0.00017388,2]
[388661155,1759309577105,-167.07881278,0.00017391,2]
[388661156,1759309577129,-167.07881278,0.00017394,2]
[388661157,1759309577156,-1809.92294317,0.00017401,2]
[388661158,1759309577179,-1809.92294317,0.0001741,2]
[388661159,1759309577202,-166.85259387,0.00017424,2]
[388661160,1759309577231,-49.31532932,0.00017431,2]
[388661161,1759309604484,-442.26413964,0.00016625,2]
[388661162,1759309607265,-239.02522413,0.00016625,2]
[388661163,1759309611747,-127.67263623,0.00016625,2]
[388661165,1759309661861,-500.0,0.00016623,2]
[388661170,1759309824110,-296.07229331,0.00016623,2]
[388661188,1759309831842,-35.18090669,0.00016623,2]
[388661190,1759309831856,-190.97093944,0.00017323,2]
[388661191,1759309831872,-274.74268275,0.00017366,2]
[388661192,1759309831903,-158.49300027,0.00017366,2]
[388661193,1759309831915,-1274.92941134,0.00017373,2]
[388661194,1759309831929,-1225.07058866,0.00017373,2]
[388661195,1759309831941,-433.23568302,0.00017399,2]
[388661196,1759309831952,-2500.0,0.00017409,2]
[388661197,1759309831963,-550.0,0.00017422,2]
[388661198,1759309831974,-300.0,0.00017422,2]
[388661199,1759309831987,-300.0,0.00017422,2]
[388661200,1759309832000,-1200.0,0.00017422,2]
[388661201,1759309832012,-300.21,0.00017423,2]
[388661202,1759309832024,-2570.55,0.00017423,2]
[388661203,1759309832035,-151.0,0.00017423,2]
[388661204,1759309832047,-151.0,0.00017423,2]
[388661205,1759309832058,-151.0,0.00017423,2]
[388661206,1759309832070,-151.0,0.00017423,2]
[388661207,1759309832081,-151.0,0.00017423,2]
[388661208,1759309832098,-151.0,0.00017423,2]
[388661209,1759309832109,-151.0,0.00017423,2]
[388661211,1759309832122,-151.0,0.00017423,2]
[388661213,1759309832132,-151.0,0.00017423,2]
[388661216,1759309832145,-151.0,0.00017423,2]
[388661218,1759309832159,-151.0,0.00017423,2]
[388661220,1759309832171,-151.0,0.00017423,2]
[388661222,1759309832185,-151.0,0.00017423,2]
[388661225,1759309832200,-151.0,0.00017423,2]
[388661227,1759309832213,-151.0,0.00017423,2]
[388661229,1759309832227,-500.0,0.00017423,2]
[388661233,1759309832242,-500.0,0.00017423,2]
[388661237,1759309832256,-151.0,0.00017423,2]
[388661240,1759309832270,-151.0,0.00017423,2]
[388661242,1759309832283,-151.0,0.00017423,2]
[388661244,1759309832297,-433.23568302,0.0001743,2]
[388661247,1759309832317,-243.86380509,0.00017431,2]
[388661249,1759309832330,-1809.92294317,0.00017432,2]
[388661251,1759309832343,-949.0,0.00017432,2]
[388661254,1759309832355,-2000.0,0.00017432,2]
[388661256,1759309832368,-2541.11202358,0.00017433,2]
[388661258,1759309832381,-1475.51274207,0.00017433,2]
[388661260,1759309832394,-204.47197539,0.00017433,2]
[388661262,1759309832406,-195.0,0.00017433,2]
[388661264,1759309832418,-20619.16530303,0.00017433,2]
[388661266,1759309832430,-999.38870617,0.00017434,2]
[388661267,1759309832441,-167.07881278,0.00017434,2]
[388661268,1759309832453,-1475.51274207,0.00017437,2]
[388661269,1759309832465,-999.38870617,0.00017437,2]
[388661270,1759309832477,-509.56545116,0.00017445,2]
[388661271,1759309832488,-7179.70232451,0.00017445,2]
[388661272,1759309832500,-166.85259387,0.00017447,2]
[388661273,1759309832513,-837.02087436,0.00017452,2]
[388661274,1759309832526,-1412.00298636,0.00017452,2]
[388661275,1759309832539,-166.85259387,0.00017457,2]
[388661276,1759309832555,-1475.51274207,0.00017459,2]
[388661277,1759309832566,-167.07881278,0.00017459,2]
[388661278,1759309832583,-433.23568302,0.00017463,2]
[388661279,1759309832594,-2541.11202358,0.00017468,2]
[388661280,1759309832606,-803.88032799,0.0001747,2]
[388661281,1759309832621,-6375.82199652,0.0001747,2]
[388661282,1759309832634,-166.85259387,0.00017472,2]
[388661283,1759309832645,-999.38870617,0.00017475,2]
[388661284,1759309832657,-7179.70232451,0.00017475,2]
[388661285,1759309832669,-1412.00298636,0.0001748,2]
[388661286,1759309832681,-837.02087436,0.00017483,2]
[388661287,1759309832692,-837.02087436,0.00017486,2]
[388661288,1759309832704,-293.17913441,0.00017489,2]
[388661289,1759309832717,-433.23568302,0.00017491,2]
[388661290,1759309832729,-2541.11202358,0.00017492,2]
[388661291,1759309832741,-509.56545116,0.00017492,2]
[388661292,1759309832753,-1809.92294317,0.00017495,2]
[388661293,1759309832764,-1809.92294317,0.00017495,2]
[388661294,1759309832775,-2000.0,0.00017496,2]
[388661295,1759309832786,-2000.0,0.00017496,2]
[388661296,1759309832799,-2000.0,0.00017496,2]
[388661297,1759309832811,-1554.48138013,0.00017496,2]
[388661298,1759309832824,-532.34283615,0.00017496,2]
[388661299,1759309832839,-437.2797,0.00017496,2]
[388661300,1759309832852,-570.6,0.00017496,2]
[388661301,1759309833016,-1191.83418491,0.00017496,2]
[388661302,1759309833096,-645.73309424,0.00017496,2]
[388661303,1759309833126,-666.0,0.00017496,2]
[388661304,1759309833140,-1581.43112908,0.00017496,2]
[388661305,1759309833151,-1412.00298636,0.00017497,2]
[388661306,1759309833163,-509.56545116,0.00017498,2]
[388661307,1759309833175,-7179.70232451,0.00017498,2]
[388661308,1759309833186,-999.38870617,0.00017499,2]
[388661309,1759309833198,-195.0,0.00017552,2]
[388661310,1759309833209,-666.0,0.00017628,3]
[388661311,1759309833221,-327.64,0.0001763,2]
[388661312,1759309833234,-195.0,0.00017638,2]
[388661313,1759309833245,-8354.48,0.00017638,2]
[388661314,1759309833257,-200.0,0.00017663,2]
[388661315,1759309833270,-300.21,0.00017697,2]
[388661316,1759309833279,-2570.55,0.00017697,2]
[388661317,1759309833288,-1451.69,0.00017709,2]
[388661318,1759309833299,-150.0,0.0001772,2]
[388661319,1759309833309,-700.0,0.00017731,2]
[388661320,1759309833319,-262.84,0.00017741,2]
[388661321,1759309833328,-588.2,0.00017741,2]
[388661322,1759309833337,-1000.0,0.0001775,2]
[388661323,1759309833346,-1452.08,0.00017892,2]
[388661324,1759309833356,-232.47,0.00017954,2]
[388661325,1759309833365,-300.213961,0.00017971,2]
[388661326,1759309833374,-2570.55,0.00017971,2]
[388661327,1759309833384,-250.0,0.00018045,2]
[388661328,1759309833393,-171.0,0.00018147,2]
[388661329,1759309833402,-262.84,0.0001822,2]
[388661330,1759309833412,-500.0,0.00018226,2]
[388661331,1759309833420,-164.48,0.00018237,2]
[388661332,1759309833429,-2197.79713223,0.00018245,2]
[388661333,1759309833441,-372.75286777,0.00018245,2]
[388661334,1759309833451,-6470.96062242,0.00018287,2]
[388661335,1759309833461,-500.0,0.00018287,2]
[388661336,1759309833470,-500.0,0.00018287,2]
[388661337,1759309833481,-500.0,0.00018287,2]
[388661338,1759309833491,-500.0,0.00018287,2]
[388661339,1759309833500,-500.0,0.00018287,2]
[388661340,1759309833509,-500.0,0.00018287,2]
[388661341,1759309833518,-500.0,0.00018287,2]
[388661342,1759309833528,-500.0,0.00018287,2]
[388661343,1759309833537,-500.0,0.00018287,2]
[388661344,1759309834284,-500.0,0.00018287,2]
[388661345,1759309834310,-745.48445973,0.00018287,2]
[388661346,1759309834335,-500.0,0.00018287,2]